[Event "87th Tata Steel Challengers 2025"]
[Site "Wijk aan Zee"]
[Date "2025.01.26"]
[Round "8.1"]
[White "Pijpers, Arthur"]
[Black "Vaishali, Rameshbabu"]
[Result "1/2-1/2"]
[Annotator "TA"]
[ECO "C60"]
[WhiteElo "2474"]
[BlackElo "2476"]
[PlyCount "80"]
[EventDate "2025.01.13"]
[EventType "tourn"]
[EventCountry "NED"]
[SourceTitle "playchess.com"]
[Source "ChessBase"]
[SourceQuality "1"]
[TimeControl "40/6000+30:20/3000+30:900+30"]

{[%evp 9,80,35,34,21,29,29,39,23,29,9,8,0,0,0,0,0,0,0,17,13,0,0,0,0,0,-12,0,-15,0,-49,-51,-94,-73,-90,-68,-69,-67,-67,-68,-97,-91,-99,-76,-69,-81,-68,-60,-86,-23,-40,-1,-38,20,-68,0,0,-2,-1,51,5,55,40,46,0,0,0,0,0,0,0,0,0,0]} 1. e4 {[%emt 0:00:04]} e5 {[%emt 0:00:11]} 2. Nf3 {[%emt 0:00:06]} Nc6 {[%emt 0:00:05]} 3. Bb5 {[%emt 0:00:04]} Nge7 {[%emt 0:00:13]} 4. Nc3 {[%emt 0:03:41]} Ng6 {[%emt 0:00:15]} 5. d4 {[%emt 0:01:27]} Nxd4 {[%emt 0:00:42]} 6. Nxd4 {[%emt 0:00:07] C60: Ruy Lopez: Unusual Black 3rd moves and 3...g6.} exd4 {[%emt 0:00:03]} 7. Qxd4 {[%emt 0:00:06][%cal Oh2h4]} c6 {[%emt 0:00:04]} 8. Be2 {[%emt 0:15:04] White is slightly better.} Qb6 $1 {[%emt 0:00:13]} 9. Be3 {[%emt 0:00:28]} Qxb2 {[%emt 0:02:05]} 10. Rb1 {[%emt 0:04:49] White sacrificed a pawn} Qa3 {[%emt 0:00:12] A sharp opening} 11. O-O {[%emt 0:01:26]} Qd6 {[%emt 0:04:22] Repels e5} 12. f4 {[%emt 0:01:05]} Qxd4 {[%emt 0:05:51]} 13. Bxd4 {[%emt 0:00:02]} d6 {[%emt 0:03:33]} 14. h4 $146 {[%emt 0:12:17][%mdl 1024] White has compensation.} (14. a4 b6 15. g3 Bb7 16. Rfd1 Be7 17. Bxg7 Rg8 18. Bh6 O-O-O 19. Bc4 d5 20. exd5 {0-1 Paseka,M (2250)-Makkar,R (2452) Wch U16 Montesilvano 2023 (3)}) 14... h5 {[%emt 0:09:33][%cal Of8e7]} 15. g3 {[%emt 0:00:41]} f6 {[%emt 0:05:26]} 16. Bd3 {[%emt 0:14:58][%cal Oe4e5]} Kd8 {[%emt 0:11:27]} 17. Bc4 {[%emt 0:02:09]} Be7 {[%emt 0:05:50]} 18. Ne2 {[%emt 0:07:19]} Kc7 {[%emt 0:03:17]} 19. Bf7 {[%emt 0:01:12]} (19. Bc3 $11 {was preferable.}) 19... Bg4 $1 $15 {[%emt 0:01:28]} 20. Bxg6 {[%emt 0:08:42] Threatens to win with Rfe1.} Bxe2 {[%emt 0:00:20]} 21. Rfe1 {[%emt 0:00:03]} Bc4 {[%emt 0:03:59][%cal Oc6c5]} 22. a4 {[%emt 0:02:54]} b6 {[%emt 0:17:18]} 23. Re3 {[%emt 0:13:01]} c5 {[%emt 0:09:41]} 24. Rc3 {[%emt 0:02:34]} Be6 {[%emt 0:01:46]} (24... cxd4 25. Rxc4+ Kb7 26. Bf5 $18 (26. Rxd4 Rac8 $16)) 25. Be3 {[%emt 0:00:34]} Rh6 {[%emt 0:11:25]} 26. f5 {[%emt 0:01:44] [#]} Rxg6 {[%emt 0:00:07]} 27. fxg6 {[%emt 0:00:01][%cal Oa4a5]} Bd7 {[%emt 0:00:06]} 28. a5 {[%emt 0:09:38]} Bc6 {[%emt 0:03:21]} (28... b5 $17 29. g4 Rh8) 29. Re1 {[%emt 0:02:31]} b5 {[%emt 0:05:27][%cal Oc6e8]} (29... Bxe4 30. Bxc5 dxc5 31. Rxe4 $18) 30. Bf4 {[%emt 0:00:14]} Kd7 {[%emt 0:00:26] [#]} (30... c4 $1 $15) 31. g4 {[%emt 0:01:25]} Rh8 {[%emt 0:05:20]} (31... hxg4 $15 32. Rd3 b4) 32. g5 $11 {[%emt 0:00:01]} Ke6 {[%emt 0:00:44]} 33. gxf6 {[%emt 0:02:47]} gxf6 {[%emt 0:01:15]} (33... Bxf6 $11 34. e5 Bxh4 (34... dxe5 $2 {loses.} 35. Bxe5 Bxe5 36. Rce3 $18)) 34. a6 {[%emt 0:00:01]} (34. Rg3 $14) 34... Rg8 {[%emt 0:00:51]} ({Black should try} 34... b4 $11 35. Rg3 Bb5) 35. Rg3 $14 {[%emt 0:00:01]} b4 {[%emt 0:00:31]} 36. g7 {[%emt 0:01:46]} (36. Kf2 $14) 36... Kf7 $11 {[%emt 0:00:30] The position is equal.} 37. Bh6 {[%emt 0:02:13]} Bb5 {[%emt 0:00:28]} 38. Ra1 {[%emt 0:00:58]} Bc6 {[%emt 0:00:21]} 39. Re1 {[%emt 0:00:14]} Bb5 {[%emt 0:00:05]} 40. Ra1 {[%emt 0:00:04]} Bc6 {[%emt 0:00:22] Weighted Error Value: White=0.16 (very precise) /Black=0.13 (very precise)   Mistake:       	White=4     	Black=5      Inaccurate:     	White=2     	Black=1      OK:         	White=12    	Black=15     Best:        	White=2     	Black=2      Strong:       	---       	Black=2      Brilliant:      	---       	Black=1} 1/2-1/2

[Event "87th Tata Steel Challengers 2025"]
[Site "Wijk aan Zee"]
[Date "2025.01.26"]
[Round "8.2"]
[White "Gurel, Ediz"]
[Black "L'Ami, Erwin"]
[Result "1/2-1/2"]
[Annotator "TA"]
[ECO "C65"]
[WhiteElo "2624"]
[BlackElo "2614"]
[PlyCount "70"]
[EventDate "2025.01.13"]
[EventType "tourn"]
[EventCountry "NED"]
[SourceTitle "playchess.com"]
[Source "ChessBase"]
[SourceQuality "1"]
[TimeControl "40/6000+30:20/3000+30:900+30"]

{[%evp 9,70,26,13,12,14,22,22,20,15,22,24,18,22,18,31,41,24,30,26,8,32,29,70,0,-1,-10,-9,0,0,-9,-20,-5,8,5,22,10,10,6,7,12,1,0,0,0,0,0,0,0,0,0,0,0,0,0,0,0,0,-105,0,0,0,0,0]} 1. e4 {[%emt 0:00:04]} e5 {[%emt 0:00:12]} 2. Nf3 {[%emt 0:00:12]} Nc6 {[%emt 0:00:15]} 3. Bb5 {[%emt 0:00:14]} Nf6 {[%emt 0:00:12]} 4. d3 {[%emt 0:00:17]} d6 {[%emt 0:00:22]} 5. d4 {[%emt 0:00:27]} exd4 {[%emt 0:03:20]} 6. Nxd4 {[%emt 0:00:13] C65: Ruy Lopez: Berlin Defence (3...Nf6), unusual lines and 4 0-0 Bc5.} Bd7 {[%emt 0:00:12]} 7. Nc3 {[%emt 0:01:33]} Nxd4 {[%emt 0:10:24]} 8. Bxd7+ {[%emt 0:00:30]} Qxd7 {[%emt 0:00:51]} 9. Qxd4 {[%emt 0:00:07]} Be7 {[%emt 0:00:26]} 10. Bf4 {[%emt 0:01:44]} Qg4 {[%emt 0:08:40][%csl LRf4,LRg2]} 11. Be3 {[%emt 0:01:27]} c6 $146 {[%emt 0:03:24]} (11... O-O 12. O-O Rfe8 13. h3 Qh5 14. f4 a6 15. a4 Rac8 16. Rae1 Nd7 {1-0 Nitin,S (2381)-Chan,Y (2316) Titled Tuesday intern op 14th April blitz 2020 (7)}) 12. h3 {[%emt 0:09:46]} Qe6 {[%emt 0:06:00]} 13. O-O-O {[%emt 0:05:49]} O-O {[%emt 0:04:46]} 14. g4 {[%emt 0:02:44]} Nd7 {[%emt 0:12:02]} (14... b5 $5) 15. f4 {[%emt 0:03:43]} Nb6 {[%emt 0:05:09]} 16. g5 {[%emt 0:09:34] White is more active.} (16. f5 $14 Qc4 17. h4) 16... f5 $11 {[%emt 0:04:29]} 17. Kb1 {[%emt 0:09:30]} Qc4 {[%emt 0:06:41]} 18. Rhe1 {[%emt 0:08:13]} fxe4 {[%emt 0:03:52]} 19. Qxe4 {[%emt 0:11:25]} (19. Nxe4 $5 Qxd4 20. Rxd4 $19) 19... Qxe4 {[%emt 0:02:00]} 20. Nxe4 {[%emt 0:00:01]} d5 {[%emt 0:04:24]} 21. Nc5 {[%emt 0:03:47]} Bxc5 {[%emt 0:01:34]} 22. Bxc5 {[%emt 0:00:06]} Rf7 {[%emt 0:00:42]} 23. Re2 {[%emt 0:12:41]} Nd7 {[%emt 0:02:29]} 24. Bd6 {[%emt 0:00:07]} Nf8 {[%emt 0:01:08]} 25. Rde1 {[%emt 0:00:38] and Re8 would now be decisive} Rd8 {[%emt 0:01:05]} 26. Be7 {[%emt 0:00:18]} Re8 {[%emt 0:05:13]} 27. Bd6 {[%emt 0:01:22]} Rd8 {[%emt 0:02:30]} 28. Be7 {[%emt 0:02:03]} Rd7 {[%emt 0:00:44]} 29. Bxf8 {[%emt 0:04:38]} Rxf8 {[%emt 0:00:08]} 30. Re7 {[%emt 0:00:14]} Rxe7 {[%emt 0:02:19]} 31. Rxe7 {[%emt 0:00:06]} Rxf4 {[%emt 0:00:08] [#] ( -> ...Rf1+). KR-KR. Black is a pawn up.} 32. b3 {[%emt 0:00:19]} Rf7 {[%emt 0:01:32]} 33. Re8+ {[%emt 0:00:05]} Rf8 {[%emt 0:00:05]} 34. Re7 {[%emt 0:00:02]} Rf7 {[%emt 0:00:09]} 35. Re8+ {[%emt 0:00:06]} Rf8 {[%emt 0:00:04] Weighted Error Value: White=0.07 (flawless) /Black=0.04 (flawless)   Mistake:       	White=1     	---        Inaccurate:     	---       	Black=2      OK:         	White=17    	Black=16} 1/2-1/2

[Event "87th Tata Steel Challengers 2025"]
[Site "Wijk aan Zee"]
[Date "2025.01.26"]
[Round "8.3"]
[White "Bok, Benjamin"]
[Black "Svane, Frederik"]
[Result "1/2-1/2"]
[Annotator "TA"]
[ECO "E32"]
[WhiteElo "2583"]
[BlackElo "2664"]
[PlyCount "60"]
[EventDate "2025.01.13"]
[EventType "tourn"]
[EventCountry "NED"]
[SourceTitle "playchess.com"]
[Source "ChessBase"]
[SourceQuality "1"]
[TimeControl "40/6000+30:20/3000+30:900+30"]

{[%evp 13,60,0,0,0,0,0,0,0,0,0,0,0,0,0,0,7,0,0,0,0,0,0,0,0,8,14,12,0,0,0,0,0,0,0,0,0,0,-11,-10,-10,-7,-21,-10,-11,0,-11,0,-10,0]} 1. d4 {[%emt 0:00:03]} Nf6 {[%emt 0:00:06]} 2. c4 {[%emt 0:00:04]} e6 {[%emt 0:00:04]} 3. Nc3 {[%emt 0:00:04]} Bb4 {[%emt 0:00:05]} 4. Qc2 {[%emt 0:00:04]} O-O {[%emt 0:00:07]} 5. e4 {[%emt 0:00:05][%cal Be2e4,Be4e5][%mdl 32]} d5 {[%emt 0:00:24]} 6. e5 {[%emt 0:00:05]} Ne4 {[%emt 0:00:05]} 7. Bd3 {[%emt 0:00:05]} c5 {[%emt 0:00:05] The position is equal.} 8. Nf3 {[%emt 0:00:05] E32: Nimzo-Indian: Classical (4 Qc2): 4...0-0.} cxd4 {[%emt 0:00:13]} 9. Nxd4 {[%emt 0:00:05]} Nd7 {[%emt 0:00:06]} 10. Bf4 {[%emt 0:00:08]} Qh4 {[%emt 0:00:16]} 11. g3 {[%emt 0:00:07]} Qh5 {[%emt 0:00:04]} 12. O-O {[%emt 0:00:23]} g5 {[%emt 0:00:14]} ({Much worse is} 12... Nxe5 13. Be2 Ng4 14. Bxg4 Qxg4 15. f3 $16 (15. cxd5 Nxc3 16. bxc3 Bc5 $16)) 13. cxd5 {[%emt 0:01:17]} Bxc3 {[%emt 0:00:05]} 14. bxc3 {[%emt 0:01:10]} exd5 {[%emt 0:00:02]} 15. Be3 {[%emt 0:11:40][%cal Bf4e3,Be3d4,Bd4f6][%mdl 32]} Nxe5 {[%emt 0:00:08]} 16. f3 {[%emt 0:00:09] Inhibits Ng4.} (16. Be2 {looks sharper.} g4 17. f3 gxf3 18. Nxf3 Bg4 19. Nxe5 Bxe2 20. Rf4) 16... Nc5 {[%emt 0:00:09]} 17. Bf5 {[%emt 0:03:17]} Ne6 $1 {[%emt 0:01:45][%mdl 4] is currently scoring better than 17...f6.} 18. Rae1 {[%emt 0:16:20]} Nxd4 {[%emt 0:00:22]} 19. Bxd4 {[%emt 0:00:11]} Nc6 {[%emt 0:00:07]} 20. Bf6 {[%emt 0:12:11] A strong pair of Bishops.} Qh6 {[%emt 0:12:01]} 21. Bxc8 {[%emt 0:01:00]} Raxc8 {[%emt 0:06:47]} 22. Qf5 {[%emt 0:01:23][%csl LRd5,LRg5][%cal Of3f4] Black must now prevent f4!.} Qg6 {[%emt 0:00:08]} 23. Qxg5 {[%emt 0:02:59]} Qxg5 {[%emt 0:00:14]} 24. Bxg5 {[%emt 0:00:08]} f6 {[%emt 0:00:02]} 25. Be3 $146 {[%emt 0:08:16]} (25. Bf4 Rfd8 26. Rf2 Kf7 27. Rd2 d4 28. cxd4 Rxd4 29. Rb1 b6 30. Rc2 Rdd8 31. Rbc1 {½-½ Vidit,S (2723)-Ding,L (2806) Chessable Masters Prelim rapid 2022 (4)}) 25... Kf7 {[%emt 0:00:10]} 26. Rd1 {[%emt 0:04:03]} Rfd8 {[%emt 0:00:09]} 27. Kf2 {[%emt 0:03:08]} Ne5 {[%emt 0:14:39]} 28. Bd4 {[%emt 0:01:30]} Nc6 {[%emt 0:00:05]} 29. Be3 {[%emt 0:00:06]} Ne5 {[%emt 0:03:32]} 30. Bd4 {[%emt 0:00:26]} Nc6 {[%emt 0:00:07] An uneventful encounter.   Weighted Error Value: White=0.02 (flawless) /Black=0.02 (flawless)   OK:         	White=10    	Black=11     Best:        	---       	Black=2} 1/2-1/2

[Event "87th Tata Steel Challengers 2025"]
[Site "Wijk aan Zee"]
[Date "2025.01.26"]
[Round "8.4"]
[White "Nguyen, Thai Dai Van"]
[Black "Lu, Miaoyi"]
[Result "1-0"]
[Annotator "TA"]
[ECO "D77"]
[WhiteElo "2668"]
[BlackElo "2429"]
[PlyCount "119"]
[EventDate "2025.01.13"]
[EventType "tourn"]
[EventCountry "NED"]
[SourceTitle "playchess.com"]
[Source "ChessBase"]
[SourceQuality "1"]
[TimeControl "40/6000+30:20/3000+30:900+30"]

{[%evp 14,119,31,22,22,20,19,18,18,25,20,30,34,0,10,0,0,0,0,0,0,0,0,0,29,33,28,31,41,25,33,32,22,29,26,26,37,6,12,0,0,0,0,0,0,0,0,0,6,5,7,8,52,53,52,54,52,44,46,0,35,0,43,8,13,8,8,8,8,8,6,9,10,11,66,68,79,50,62,30,165,159,167,137,792,694,820,813,733,557,29971,29968,29971,29972,29983,29984,29984,29985,29985,29986,29991,29988,29989,29990,29990,29991,29991,29992]} 1. Nf3 {[%emt 0:00:07]} d5 {[%emt 0:00:05][%cal Bd7d5,Bd5c4][%mdl 32]} 2. g3 {[%emt 0:00:10]} g6 {[%emt 0:00:08]} 3. Bg2 {[%emt 0:00:17]} Bg7 {[%emt 0:00:02]} 4. d4 {[%emt 0:00:16]} Nf6 {[%emt 0:00:05]} 5. c4 {[%emt 0:00:49]} dxc4 {[%emt 0:00:31]} 6. O-O {[%emt 0:01:47]} O-O {[%emt 0:00:26]} 7. Na3 {[%emt 0:00:11]} c5 {[%emt 0:00:09] is recently more successful than 7...c3.} 8. dxc5 {[%emt 0:08:34]} c3 {[%emt 0:00:07] D77: Fianchetto Grünfeld: 6 0-0: Replies other than 6...c6.} 9. Nb5 {[%emt 0:00:07]} (9. bxc3 Ne4 10. Qc2 Nxc5) 9... Na6 {[%emt 0:00:04][%cal Bb8a6,Ba6c5,Bc5e4][%mdl 32]} 10. Nxc3 {[%emt 0:00:54]} Nxc5 {[%emt 0:00:02] The position is equal.} 11. Be3 {[%emt 0:00:35]} Nfe4 {[%emt 0:00:02]} 12. Nxe4 {[%emt 0:03:34]} Nxe4 {[%emt 0:00:02]} 13. Nd4 $5 {[%emt 0:04:21][%mdl 4] An interesting side line.} Nd6 {[%emt 0:06:50]} 14. Rc1 {[%emt 0:02:04] Prevents Nc4.} Qa5 $146 {[%emt 0:12:38]} (14... Bd7 15. Qd2 Rc8 16. Rxc8 Qxc8 17. Rc1 Qb8 18. Bg5 Re8 19. Nb3 Bb5 20. Na5 Bf6 21. Bxf6 exf6 {½-½ Sjugirov,S (2665)-Goganov,A (2581) RUS Cup final 2019 (2.1)}) 15. a3 {[%emt 0:09:19] The position is symmetric and equal} Rd8 {[%emt 0:10:28]} 16. b4 {[%emt 0:27:17]} Qa6 {[%emt 0:11:40][%cal Od6f5]} 17. Qb3 {[%emt 0:05:24]} e5 {[%emt 0:06:09]} 18. Nc6 {[%emt 0:09:03]} bxc6 {[%emt 0:28:13]} 19. Rxc6 {[%emt 0:00:18]} Qxe2 {[%emt 0:00:07] aiming for ...Be6.} 20. Qd1 $1 {[%emt 0:06:35]} (20. Rxd6 Rxd6 21. Bxa8 Bh3 $19) 20... Bg4 {[%emt 0:14:50] [#]} 21. Rxd6 {[%emt 0:01:03]} Qxd1 {[%emt 0:01:21]} 22. Rdxd1 {[%emt 0:00:07]} Bxd1 {[%emt 0:03:17]} 23. Bxa8 {[%emt 0:00:10]} Be2 {[%emt 0:06:17]} 24. Re1 {[%emt 0:00:32]} Bb5 {[%emt 0:01:32] Repels Bc6} 25. Bg2 {[%emt 0:12:21]} a6 $1 {[%emt 0:02:02]} 26. Rc1 {[%emt 0:05:29]} e4 {[%emt 0:02:24]} 27. Bxe4 {[%emt 0:07:57]} Bb2 {[%emt 0:00:04][%csl LRa3,LRc1]} 28. Rb1 {[%emt 0:00:30]} Bxa3 {[%emt 0:00:09]} 29. Kg2 {[%emt 0:00:28]} Rc8 {[%emt 0:02:29]} 30. Bf3 {[%emt 0:03:53]} Bc6 {[%emt 0:02:09]} 31. Bxc6 {[%emt 0:00:50]} Rxc6 $11 {[%emt 0:00:02][%mdl 4096] Endgame KRB-KRB} 32. Kf3 {[%emt 0:00:24]} (32. Rb3 $5 Bc1 $8 33. Bd4 $11) 32... Rc8 {[%emt 0:01:13]} 33. Bd2 $1 {[%emt 0:00:27]} Rc2 $1 {[%emt 0:00:42]} 34. Ke3 {[%emt 0:00:23]} Ra2 $1 {[%emt 0:00:32]} 35. Bc3 {[%emt 0:00:48] Prevents Bb2.} Rc2 $1 {[%emt 0:00:15]} 36. Bd2 {[%emt 0:00:35]} Ra2 $1 {[%emt 0:00:05] Wards off Ra1} 37. Bc3 {[%emt 0:00:36]} Rc2 $1 {[%emt 0:00:03]} 38. Be1 {[%emt 0:00:42]} Bc1+ {[%emt 0:00:48]} 39. Kd3 {[%emt 0:00:02]} Rc6 {[%emt 0:00:09]} 40. f4 {[%emt 0:00:56] Black should prevent Bf2.} Rd6+ {[%emt 0:00:50]} 41. Kc4 {[%emt 0:50:34]} Be3 {[%emt 0:10:07] Prevents Bf2} 42. Bc3 {[%emt 0:00:00]} Kf8 {[%emt 0:04:48]} 43. Be5 {[%emt 0:00:00]} Rc6+ {[%emt 0:04:52]} ({Black should try} 43... Re6 $11) 44. Kd5 $14 {[%emt 0:00:00]} Rb6 {[%emt 0:01:41]} 45. Bc7 {[%emt 0:00:00]} Rb5+ {[%emt 0:04:07]} 46. Kc6 {[%emt 0:00:00] And now Ra1 would win.} Bc5 {[%emt 0:21:13] [#]} 47. bxc5 $1 $18 {[%emt 0:00:00]} Rxb1 {[%emt 0:00:02] KR-KB} 48. Kd7 {[%emt 0:00:00]} h5 $2 {[%emt 0:04:29][%mdl 8192] Black cannot hold the game after this.} (48... Rh1 $16) 49. c6 {[%emt 0:00:00]} Kg7 {[%emt 0:00:32]} 50. Be5+ {[%emt 0:00:00]} f6 {[%emt 0:01:03]} 51. c7 {[%emt 0:00:00]} Rc1 {[%emt 0:00:24]} 52. Bb2 {[%emt 0:00:00] White mates.} (52. c8=B $2 {is the wrong capture.} fxe5 53. fxe5 a5 $19) 52... Rc2 {[%emt 0:01:52]} 53. c8=Q {[%emt 0:00:00]} (53. c8=R Rxb2 54. Rc7 Re2 $15 (54... Rxh2 55. Ke6+ Kh6 56. Kxf6 $17)) 53... Rxb2 {[%emt 0:00:42] KQ-KR} 54. Qc7 {[%emt 0:00:00]} Re2 {[%emt 0:00:41]} 55. Kd6+ {[%emt 0:00:00]} Kf8 {[%emt 0:00:25]} 56. Qh7 {[%emt 0:00:00]} a5 {[%emt 0:01:32][%cal Ba6a5,Ba5a4][%mdl 32]} 57. Qxg6 {[%emt 0:00:00]} a4 {[%emt 0:00:18]} 58. Qxf6+ {[%emt 0:00:00]} Kg8 {[%emt 0:00:02]} 59. Qg6+ {[%emt 0:00:00]} Kf8 {[%emt 0:00:04]} 60. f5 {[%emt 0:00:00] Weighted Error Value: White=0.06 (flawless) /Black=0.31  Loses game:     	---       	Black=1      Mistake:       	---       	Black=2      Inaccurate:     	White=3     	Black=2      OK:         	White=21    	Black=17     Best:        	White=3     	Black=4      Strong:       	White=2     	Black=6} 1-0

[Event "87th Tata Steel Challengers 2025"]
[Site "Wijk aan Zee"]
[Date "2025.01.26"]
[Round "8.5"]
[White "Suleymanli, Aydin"]
[Black "Oro, Faustino"]
[Result "1-0"]
[Annotator "TA"]
[ECO "A45"]
[WhiteElo "2623"]
[BlackElo "2447"]
[PlyCount "117"]
[EventDate "2025.01.13"]
[EventType "tourn"]
[EventCountry "NED"]
[SourceTitle "playchess.com"]
[Source "ChessBase"]
[SourceQuality "1"]
[TimeControl "40/6000+30:20/3000+30:900+30"]

{[%evp 9,117,18,61,57,79,74,61,68,77,46,64,30,102,100,108,66,103,51,120,63,95,89,153,134,120,104,166,151,167,169,172,160,158,168,164,168,152,152,172,170,191,100,108,100,104,114,147,142,152,152,149,12,14,8,6,9,12,5,6,3,5,4,14,10,7,6,22,19,10,10,9,-6,60,64,62,60,68,35,83,64,57,60,71,75,65,84,100,81,135,128,315,304,474,437,461,451,453,419,503,512,532,520,406,143,137,124,121,129,206,180]} 1. d4 {[%emt 0:00:03]} Nf6 {[%emt 0:00:06]} 2. Bf4 {[%emt 0:00:05]} c5 {[%emt 0:03:38]} 3. d5 {[%emt 0:06:47]} Qb6 {[%emt 0:04:52]} 4. Nc3 {[%emt 0:00:26]} d6 {[%emt 0:17:47]} 5. Qc1 {[%emt 0:05:06]} Bf5 $146 {[%emt 0:11:37]} (5... e5 6. Bg5 Be7 7. e4 h6 8. Bd2 Qd8 9. Bb5+ Nbd7 10. a4 O-O 11. Nge2 Ne8 {1-0 Edouard,R (2640)-Santos Latasa,J (2591) BEL-chT 1920 2019 (8.1)}) 6. f3 $1 {[%emt 0:04:16] A45: Trompowsky Attack.} g6 {[%emt 0:07:50]} 7. a4 {[%emt 0:03:47][%cal Ba2a4,Ba4a5][%mdl 32]} Bg7 {[%emt 0:02:03]} 8. a5 {[%emt 0:04:12] White is slightly better.} Qd8 {[%emt 0:00:17]} 9. g4 {[%emt 0:10:57]} Bc8 {[%emt 0:02:40]} 10. Bh6 {[%emt 0:01:42]} Kf8 {[%emt 0:04:04]} (10... Bxh6 $1 $11 {keeps the balance.} 11. Qxh6 b5) 11. e4 $16 {[%emt 0:06:54][%cal Be2e4,Be4d5][%mdl 32]} e6 {[%emt 0:07:20]} 12. Nge2 {[%emt 0:04:22]} exd5 {[%emt 0:02:31]} 13. exd5 {[%emt 0:01:35]} Nbd7 {[%emt 0:01:17]} (13... Na6 $1 $14) 14. Bg2 {[%emt 0:03:44]} (14. Ng3 $1 $16) 14... Ne5 {[%emt 0:03:35]} 15. O-O {[%emt 0:01:15]} Ng8 {[%emt 0:04:11]} (15... Ne8 $142) 16. Bxg7+ $1 Kxg7 {[%emt 0:00:01]} 17. h3 {[%emt 0:13:45]} h5 {[%emt 0:13:54]} (17... f5 $16) 18. g5 $18 {[%emt 0:01:55]} Bf5 {[%emt 0:01:39]} 19. f4 {[%emt 0:01:37]} Nd7 {[%emt 0:00:12]} 20. Ne4 {[%emt 0:06:17]} Bxe4 {[%emt 0:02:28]} 21. Bxe4 {[%emt 0:00:11]} Ne7 {[%emt 0:02:40]} 22. f5 {[%emt 0:09:45]} gxf5 {[%emt 0:00:28]} 23. Bxf5 {[%emt 0:00:19]} Ne5 {[%emt 0:00:20]} 24. Be4 {[%emt 0:02:08]} h4 {[%emt 0:06:20]} 25. Nf4 {[%emt 0:02:16] Wards off Rh5} ({Better is} 25. Rf6 $18) 25... N7g6 $16 {[%emt 0:02:48]} 26. Bxg6 {[%emt 0:00:28]} Nxg6 {[%emt 0:00:01]} (26... Qxg5+ $2 27. Kh1 Qe7 (27... fxg6 $2 28. Ne6+ Kh7 29. Qxg5 $18) 28. Bf5 $18) 27. Kh2 {[%emt 0:07:20]} Qd7 {[%emt 0:02:43]} (27... Qxg5 $2 28. Ne6+ fxe6 29. Qxg5 $18) 28. Qd2 {[%emt 0:02:45]} Rae8 {[%emt 0:01:24]} 29. Qc3+ {[%emt 0:01:27]} Ne5 {[%emt 0:00:11]} (29... Re5 $2 30. Nd3) 30. Ng2 {[%emt 0:01:58] White is more active.} (30. Rf2 $1 $16) 30... Rh5 $11 {[%emt 0:00:38]} 31. Qd2 {[%emt 0:01:05]} Kh7 {[%emt 0:01:16]} 32. Qf2 {[%emt 0:03:08]} Qe7 {[%emt 0:01:15]} 33. Nf4 {[%emt 0:02:23]} (33. Nxh4 Qxg5 34. Qf5+ Qxf5 35. Nxf5 Ng4+ 36. Kg1 Nf6 (36... Rxh3 37. Kg2 $11)) 33... Rxg5 {[%emt 0:00:08]} 34. Qxh4+ {[%emt 0:00:05]} Kg8 {[%emt 0:00:04]} 35. Rae1 {[%emt 0:01:26]} Qf6 {[%emt 0:00:37]} (35... Rg7 {simplifies} 36. Qxe7 Rxe7 37. Nd3 Rg5) 36. Kh1 $36 {[%emt 0:01:18][%mdl 2048] White has the initiative.} (36. Ne6 $2 Rg2+ 37. Kxg2 Qxh4 $19) 36... Rf5 $1 {[%emt 0:01:31]} 37. Qxf6 {[%emt 0:00:58]} Rxf6 {[%emt 0:00:00]} 38. Nh5 {[%emt 0:00:12]} Rxf1+ {[%emt 0:00:04]} 39. Rxf1 {[%emt 0:00:02][%mdl 4096] Endgame KRN-KRN} Kf8 {[%emt 0:00:24]} 40. b3 {[%emt 0:01:30] Dodges Nc4} Ke7 {[%emt 0:00:34]} (40... Ng6 $11) 41. Ng7 {[%emt 0:50:50]} Rh8 {[%emt 0:50:07]} 42. Nf5+ {[%emt 0:00:17]} Kd7 {[%emt 0:00:29]} 43. Kg2 {[%emt 0:00:00]} Ng6 {[%emt 0:00:00]} (43... c4 $14) 44. Kg3 {[%emt 0:00:00]} Ne7 {[%emt 0:00:00]} 45. Ne3 {[%emt 0:00:00]} f5 {[%emt 0:00:00]} 46. h4 {[%emt 0:00:00][%cal Oc2c4]} (46. Nxf5 Nxd5 47. h4 Nc3) 46... Rh5 {[%emt 0:00:00]} 47. c4 {[%emt 0:00:00]} Ke8 {[%emt 0:00:00]} 48. Re1 {[%emt 0:00:00] Ng2 is the strong threat.} Kf7 {[%emt 0:00:00]} 49. Ng2 $1 {[%emt 0:00:00]} Rh6 {[%emt 0:00:00] [#] Prevents Re6} (49... Ng6 $16) 50. Nf4 $1 $18 {[%emt 0:00:00]} Ng6 {[%emt 0:00:00]} (50... Ng8 51. Ne6 b6 52. Ng5+ Kg6 53. axb6 f4+ 54. Kh3 (54. Kxf4 Rxh4+ 55. Kf3 axb6 $18) (54. Kf3 axb6 55. Rg1 Ne7 $18) 54... axb6) 51. Nxg6 {[%emt 0:00:00]} (51. Re6 Rxh4 52. Rxg6 (52. Nxg6 Rg4+ 53. Kf3 Rxg6 $11) 52... Rxf4 53. Rxd6 Rg4+ 54. Kf3 Ke7 55. Re6+ Kf7 $18) 51... Rxg6+ {[%emt 0:00:00] KR-KR} 52. Kf4 {[%emt 0:00:00]} Rg4+ {[%emt 0:00:00]} 53. Kxf5 {[%emt 0:00:00]} Rxh4 {[%emt 0:00:00]} 54. Re6 {[%emt 0:00:00]} Rh3 {[%emt 0:00:00]} 55. Rxd6 {[%emt 0:00:00]} Ke7 {[%emt 0:00:00] Dodges Rd7+} 56. Rg6 {[%emt 0:00:00]} (56. Re6+ $18 Kd7 57. a6 Rf3+ 58. Ke5) 56... Rxb3 $16 {[%emt 0:00:00] [#]} 57. a6 $1 {[%emt 0:00:00]} bxa6 {[%emt 0:00:00]} 58. Rc6 {[%emt 0:00:00]} (58. Rxa6 Rf3+ 59. Ke4 Rc3) 58... Kd7 {[%emt 0:07:00]} (58... Rb6 $16 {is a better defense.} 59. Rc7+ (59. Rxc5 Kd7 $16) 59... Kd6 60. Rxa7 Rb4 61. Rxa6+ Kd7) 59. Ke4 {[%emt 0:00:00] Weighted Error Value: White=0.16 (very precise) /Black=0.23 (precise)   Loses game:     	---       	Black=1      Missed win:     	White=1     	---        Mistake:       	White=3     	Black=8      Inaccurate:     	White=4     	Black=1      OK:         	White=22    	Black=22     Best:        	White=5     	Black=4      Strong:       	White=4     	Black=1} ({Inferior is} 59. Rxa6 Rc3 $11) 1-0